[Event "10th Dolomiti Open 2019"]
[Site "Forni di Sopra"]
[Date "2019.06.15"]
[Round "1.2"]
[White "Motola, Jacopo"]
[Black "Dreev, Aleksey"]
[Result "0-1"]
[ECO "A50"]
[WhiteElo "2229"]
[BlackElo "2657"]
[Annotator "RC"]
[PlyCount "76"]
[EventDate "2019.06.15"]
[EventType "swiss"]
[EventCountry "ITA"]
[SourceTitle "playchess.com"]
[Source "ChessBase"]
[SourceQuality "1"]
[TimeControl "40/5400+30:1800+30"]

1. d4 {[%emt 0:00:00]} Nf6 {[%emt 0:00:00]} 2. Nf3 {[%emt 0:00:00]} b6 {[%emt 0:01:24]} 3. g3 {[%emt 0:00:18]} Bb7 {[%emt 0:00:09]} 4. Bg2 {[%emt 0:00:11]} g6 {[%emt 0:00:08]} 5. c4 {[%emt 0:00:53]} Bg7 {[%emt 0:00:07]} 6. O-O {[%emt 0:00:20]} O-O {[%emt 0:00:21]} 7. Nc3 {[%emt 0:00:26]} Ne4 {[%emt 0:00:21]} 8. Nxe4 {[%emt 0:04:56]} Bxe4 {[%emt 0:00:09]} 9. Ne1 {[%emt 0:00:11]} Bxg2 {[%emt 0:01:10]} 10. Kxg2 {[%emt 0:00:33]} c5 {[%emt 0:04:43]} 11. d5 {[%emt 0:00:52]} b5 {[%emt 0:02:54]} 12. cxb5 {[%emt 0:01:11]} Qb6 {[%emt 0:01:26]} 13. d6 {[%emt 0:17:46]} e6 {[%emt 0:05:41]} 14. Nc2 {[%emt 0:06:56]} Qxb5 {[%emt 0:01:17]} 15. Na3 {[%emt 0:00:44]} Qa6 {[%emt 0:04:00]} 16. f4 {[%emt 0:06:24]} Nc6 {[%emt 0:02:59]} 17. Qd3 {[%emt 0:06:51]} Qb7 {[%emt 0:07:13]} 18. e4 {[%emt 0:11:19]} f5 {[%emt 0:06:17]} 19. Nc4 {[%emt 0:12:32]} Nb4 {[%emt 0:02:01]} 20. Qe2 {[%emt 0:00:35]} fxe4 {[%emt 0:01:24]} 21. Be3 {[%emt 0:04:47]} Rf5 {[%emt 0:01:05]} 22. Rad1 {[%emt 0:01:41]} Raf8 {[%emt 0:03:05]} 23. b3 {[%emt 0:08:04]} Qa6 {[%emt 0:05:54]} 24. a3 {[%emt 0:00:41]} Nd5 {[%emt 0:00:45]} 25. Rde1 {[%emt 0:01:18]} Qb7 {[%emt 0:02:54]} 26. Qc2 {[%emt 0:00:36]} Rb8 {[%emt 0:06:23]} 27. Qxe4 {[%emt 0:01:49]} Qxb3 {[%emt 0:02:45]} 28. g4 {[%emt 0:04:19]} Nf6 {[%emt 0:05:12]} 29. Qf3 {[%emt 0:01:26]} Nxg4 {[%emt 0:00:46]} 30. Nd2 {[%emt 0:03:10]} Qd5 {[%emt 0:00:34]} 31. Qxd5 {[%emt 0:01:51]} Nxe3+ {[%emt 0:02:00]} 32. Rxe3 {[%emt 0:00:05]} exd5 {[%emt 0:00:07]} 33. Re7 {[%emt 0:00:19]} Rf7 {[%emt 0:01:30]} 34. Nf3 {[%emt 0:01:16]} Rxe7 {[%emt 0:00:43]} 35. dxe7 {[%emt 0:00:05]} Kf7 {[%emt 0:00:54]} 36. Re1 {[%emt 0:00:06]} Bf6 {[%emt 0:00:27]} 37. Ne5+ {[%emt 0:00:18]} Bxe5 {[%emt 0:00:15]} 38. Rxe5 {[%emt 0:00:03]} d6 {[%emt 0:00:14]} 0-1

[Event "10th Dolomiti Open 2019"]
[Site "Forni di Sopra"]
[Date "2019.06.15"]
[Round "1.5"]
[White "Martinez Alcantara, Jose Eduardo"]
[Black "Pasini, Nicolo"]
[Result "1-0"]
[ECO "C65"]
[WhiteElo "2583"]
[BlackElo "2224"]
[Annotator "ChessBase"]
[PlyCount "67"]
[EventDate "2019.06.15"]
[EventType "swiss"]
[EventCountry "ITA"]
[SourceTitle "playchess.com"]
[Source "ChessBase"]
[SourceQuality "1"]
[TimeControl "40/5400+30:1800+30"]

1. e4 {[%emt 0:00:00]} e5 {[%emt 0:00:00]} 2. Nf3 {[%emt 0:00:00]} Nc6 {[%emt 0:00:00]} 3. Bb5 {[%emt 0:00:00]} Nf6 {[%emt 0:00:00]} 4. d3 {[%emt 0:00:00]} Bc5 {[%emt 0:00:04]} 5. c3 {[%emt 0:00:00]} O-O {[%emt 0:00:09]} 6. Nbd2 {[%emt 0:01:10]} d6 {[%emt 0:00:11]} 7. O-O {[%emt 0:00:56]} a5 {[%emt 0:05:18]} 8. h3 {[%emt 0:01:49]} Ne7 {[%emt 0:05:52]} 9. d4 {[%emt 0:00:31]} exd4 {[%emt 0:00:15]} 10. cxd4 {[%emt 0:00:06]} Bb6 {[%emt 0:02:27]} 11. Re1 {[%emt 0:07:04]} c6 {[%emt 0:00:22]} 12. Bd3 {[%emt 0:00:41]} Ng6 {[%emt 0:01:18]} 13. Nc4 {[%emt 0:03:20]} Bc7 {[%emt 0:01:52]} 14. e5 {[%emt 0:00:24]} dxe5 {[%emt 0:02:27]} 15. dxe5 {[%emt 0:00:20]} Nd5 {[%emt 0:03:31]} 16. Bg5 {[%emt 0:06:03]} f6 {[%emt 0:06:19]} 17. exf6 {[%emt 0:02:29]} gxf6 {[%emt 0:00:54]} 18. Bh6 {[%emt 0:00:34]} Re8 {[%emt 0:00:52]} 19. Rxe8+ {[%emt 0:16:52]} Qxe8 {[%emt 0:00:12]} 20. Ne3 {[%emt 0:00:10]} Nge7 {[%emt 0:43:08]} 21. Nd4 {[%emt 0:10:09]} Nxe3 {[%emt 0:03:46]} 22. Bxe3 {[%emt 0:01:18]} Nd5 {[%emt 0:00:45]} 23. Bc4 {[%emt 0:01:03]} Kh8 {[%emt 0:02:41]} 24. Bxd5 {[%emt 0:04:17]} cxd5 {[%emt 0:00:40]} 25. Rc1 {[%emt 0:00:39]} Bd6 {[%emt 0:04:27]} 26. Nf3 {[%emt 0:02:32]} Be6 {[%emt 0:03:19]} 27. Qd4 {[%emt 0:00:46]} Qe7 {[%emt 0:03:24]} 28. Bf4 {[%emt 0:07:40]} Kg7 {[%emt 0:04:02]} 29. Re1 {[%emt 0:01:34]} Bc5 {[%emt 0:00:41]} 30. Rxe6 {[%emt 0:00:56]} Qxe6 {[%emt 0:00:05]} 31. Qxc5 {[%emt 0:00:06]} Rc8 {[%emt 0:01:30]} 32. Qxa5 {[%emt 0:02:03]} Qe4 {[%emt 0:00:19]} 33. Be3 {[%emt 0:00:36]} Rc2 {[%emt 0:03:03]} 34. Qb6 {[%emt 0:00:39]} 1-0

[Event "10th Dolomiti Open 2019"]
[Site "Forni di Sopra"]
[Date "2019.06.15"]
[Round "1.7"]
[White "Santos Ruiz, Miguel"]
[Black "Soto, Miguel Angel"]
[Result "1-0"]
[ECO "C06"]
[WhiteElo "2557"]
[BlackElo "2217"]
[Annotator "ChessBase"]
[PlyCount "51"]
[EventDate "2019.06.15"]
[EventType "swiss"]
[EventCountry "ITA"]
[SourceTitle "playchess.com"]
[Source "ChessBase"]
[SourceQuality "1"]
[TimeControl "40/5400+30:1800+30"]

1. e4 {[%emt 0:00:00]} e6 {[%emt 0:03:18]} 2. d4 {[%emt 0:00:00]} d5 {[%emt 0:00:45]} 3. Nd2 {[%emt 0:00:00]} Nf6 {[%emt 0:01:22]} 4. e5 {[%emt 0:00:18]} Nfd7 {[%emt 0:00:16]} 5. c3 {[%emt 0:00:13]} c5 {[%emt 0:01:29]} 6. Bd3 {[%emt 0:00:33]} Nc6 {[%emt 0:01:21]} 7. Ne2 {[%emt 0:00:29]} cxd4 {[%emt 0:01:38]} 8. cxd4 {[%emt 0:00:09]} f6 {[%emt 0:00:52]} 9. exf6 {[%emt 0:00:22]} Qxf6 {[%emt 0:01:04]} 10. O-O {[%emt 0:01:15]} Bd6 {[%emt 0:01:43]} 11. Nf3 {[%emt 0:02:08]} h6 {[%emt 0:00:19]} 12. Ng3 {[%emt 0:01:12]} O-O {[%emt 0:04:17]} 13. Bc2 {[%emt 0:04:06]} Rd8 {[%emt 0:01:52]} 14. Re1 {[%emt 0:02:23]} Nf8 {[%emt 0:02:36]} 15. Ne5 {[%emt 0:04:44]} Bd7 {[%emt 0:04:37]} 16. Nh5 {[%emt 0:02:46]} Qh4 {[%emt 0:02:38]} 17. Nxg7 {[%emt 0:00:10]} Kxg7 {[%emt 0:21:38]} 18. Re3 {[%emt 0:03:39]} Nxe5 {[%emt 0:13:49]} 19. dxe5 {[%emt 0:09:53]} Bc5 {[%emt 0:06:24]} 20. Rh3 {[%emt 0:22:12]} Qxf2+ {[%emt 0:07:04]} 21. Kh1 {[%emt 0:00:08]} Qg1+ {[%emt 0:04:05]} 22. Qxg1 {[%emt 0:00:10]} Be3 {[%emt 0:17:53]} 23. Qf2 Bxf2 {[%emt 0:00:00]} 24. Bxh6+ {[%emt 0:45:10] Bg1 Re1+} Kf7 25. Rf1 {[%emt 0:00:00]} Ke7 {[%emt 0:00:00]} 26. Bg5+ {[%emt 0:00:00]} 1-0

[Event "10th Dolomiti Open 2019"]
[Site "Forni di Sopra"]
[Date "2019.06.15"]
[Round "1.8"]
[White "Alok Sinha"]
[Black "Basso, Pier Luigi"]
[Result "1-0"]
[ECO "C54"]
[WhiteElo "2205"]
[BlackElo "2539"]
[Annotator "ChessBase"]
[PlyCount "92"]
[EventDate "2019.06.15"]
[EventType "swiss"]
[EventCountry "ITA"]
[SourceTitle "playchess.com"]
[Source "ChessBase"]
[SourceQuality "1"]
[TimeControl "40/5400+30:1800+30"]

1. e4 {[%emt 0:00:00]} e5 {[%emt 0:00:00]} 2. Nf3 {[%emt 0:00:00]} Nc6 {[%emt 0:00:00]} 3. Bc4 {[%emt 0:00:00]} Bc5 {[%emt 0:00:00]} 4. c3 {[%emt 0:00:00]} Nf6 {[%emt 0:00:00]} 5. d3 {[%emt 0:00:02]} O-O {[%emt 0:00:07]} 6. O-O {[%emt 0:00:05]} d5 {[%emt 0:00:07]} 7. exd5 {[%emt 0:00:07]} Nxd5 {[%emt 0:00:04]} 8. Re1 {[%emt 0:00:33]} Bg4 {[%emt 0:00:36]} 9. Nbd2 {[%emt 0:00:35]} Nb6 {[%emt 0:00:46]} 10. h3 {[%emt 0:00:13]} Bh5 {[%emt 0:00:23]} 11. Bb3 {[%emt 0:00:18]} Qxd3 {[%emt 0:02:22]} 12. Nxe5 {[%emt 0:00:12]} Qf5 {[%emt 0:02:25]} 13. Nef3 {[%emt 0:00:26]} Rad8 {[%emt 0:03:41]} 14. g4 {[%emt 0:00:28]} Bxg4 {[%emt 0:00:06]} 15. hxg4 {[%emt 0:00:03]} Qxg4+ {[%emt 0:00:08]} 16. Kh1 {[%emt 0:00:04]} Bxf2 {[%emt 0:01:53]} 17. Re2 {[%emt 0:18:48]} Bg3 {[%emt 0:23:49]} 18. Qf1 {[%emt 0:13:23]} Na5 {[%emt 0:11:40]} 19. Nh2 {[%emt 0:24:03]} Bxh2 {[%emt 0:04:02]} 20. Rxh2 {[%emt 0:00:48]} Nxb3 {[%emt 0:00:08]} 21. axb3 {[%emt 0:00:06]} Rd5 {[%emt 0:12:38]} 22. Qe2 {[%emt 0:16:53]} Qd7 {[%emt 0:02:01]} 23. Rg2 {[%emt 0:08:02]} Re8 {[%emt 0:00:55]} 24. Ne4 {[%emt 0:00:31]} Kh8 {[%emt 0:04:04]} 25. Bh6 {[%emt 0:08:06]} g6 {[%emt 0:12:11]} 26. c4 {[%emt 0:06:39]} Rde5 {[%emt 0:00:42]} 27. Qf3 {[%emt 0:00:22]} Qc6 {[%emt 0:07:16]} 28. Qf6+ {[%emt 0:01:08]} Qxf6 {[%emt 0:00:02]} 29. Nxf6 {[%emt 0:00:04]} Rd8 {[%emt 0:03:23]} 30. Bd2 {[%emt 0:00:41]} Kg7 {[%emt 0:01:09]} 31. Bc3 {[%emt 0:00:07]} Rf5 {[%emt 0:00:06]} 32. Rh2 {[%emt 0:01:47]} h6 {[%emt 0:01:29]} 33. Ng4+ {[%emt 0:00:28]} f6 {[%emt 0:00:03]} 34. Nxf6 {[%emt 0:00:32]} Rxf6 {[%emt 0:01:13]} 35. Rf2 {[%emt 0:00:05]} Rdf8 {[%emt 0:01:11]} 36. Rxf6 {[%emt 0:00:13]} Rxf6 {[%emt 0:00:05]} 37. Rxa7 {[%emt 0:00:05]} Kf7 {[%emt 0:00:11]} 38. Bxf6 {[%emt 0:00:07]} Kxf6 {[%emt 0:00:05]} 39. Rxb7 {[%emt 0:00:06]} Nd7 {[%emt 0:01:01]} 40. Rxc7 {[%emt 0:00:13]} Ke6 {[%emt 0:00:24]} 41. Rc6+ {[%emt 0:30:52]} Kf5 {[%emt 0:31:17]} 42. b4 {[%emt 0:00:13]} Ne5 {[%emt 0:00:04]} 43. Rc7 {[%emt 0:00:34]} Ke6 {[%emt 0:01:53]} 44. b5 {[%emt 0:00:14]} Kd6 {[%emt 0:00:06]} 45. b6 {[%emt 0:00:08]} Nd7 {[%emt 0:00:02]} 46. c5+ {[%emt 0:00:10]} Kd5 {[%emt 0:07:12]} 1-0

[Event "10th Dolomiti Open 2019"]
[Site "Forni di Sopra"]
[Date "2019.06.15"]
[Round "1.9"]
[White "Castellanos Rodriguez, Renier"]
[Black "Dev, Shah"]
[Result "1-0"]
[ECO "C88"]
[WhiteElo "2511"]
[BlackElo "2183"]
[Annotator "ChessBase"]
[PlyCount "61"]
[EventDate "2019.06.15"]
[EventType "swiss"]
[EventCountry "ITA"]
[SourceTitle "playchess.com"]
[Source "ChessBase"]
[SourceQuality "1"]
[TimeControl "40/5400+30:1800+30"]

1. e4 {[%emt 0:00:00]} e5 {[%emt 0:00:24]} 2. Nf3 {[%emt 0:00:00]} Nc6 {[%emt 0:00:12]} 3. Bb5 {[%emt 0:00:00]} a6 {[%emt 0:00:13]} 4. Ba4 {[%emt 0:00:00]} Nf6 {[%emt 0:00:10]} 5. d3 {[%emt 0:00:04]} b5 {[%emt 0:00:23]} 6. Bb3 {[%emt 0:00:01]} Be7 {[%emt 0:00:22]} 7. a4 {[%emt 0:00:38]} b4 {[%emt 0:02:02]} 8. Nbd2 {[%emt 0:01:09]} d6 {[%emt 0:02:04]} 9. O-O {[%emt 0:00:55]} O-O {[%emt 0:00:25]} 10. c3 {[%emt 0:02:11]} Rb8 {[%emt 0:04:03]} 11. Re1 {[%emt 0:06:44]} Be6 {[%emt 0:06:30]} 12. Bxe6 {[%emt 0:04:23]} fxe6 {[%emt 0:00:14]} 13. Nf1 {[%emt 0:01:19]} Qd7 {[%emt 0:09:32]} 14. Ng3 {[%emt 0:01:06]} bxc3 {[%emt 0:03:43]} 15. bxc3 {[%emt 0:00:04]} Na5 {[%emt 0:00:16]} 16. d4 {[%emt 0:08:39]} exd4 {[%emt 0:09:20]} 17. cxd4 {[%emt 0:00:11]} Nb3 {[%emt 0:00:35]} 18. Ra2 {[%emt 0:02:07]} Nxc1 {[%emt 0:04:42]} 19. Qxc1 {[%emt 0:00:26]} Rb4 {[%emt 0:00:35]} 20. h3 {[%emt 0:08:10]} Rc8 {[%emt 0:02:19]} 21. e5 {[%emt 0:23:25]} Nd5 {[%emt 0:01:20]} 22. Ne4 {[%emt 0:39:28]} c5 {[%emt 0:09:45]} 23. exd6 {[%emt 0:00:00]} cxd4 {[%emt 0:01:36]} 24. Rc2 {[%emt 0:00:00]} Rxc2 {[%emt 0:00:39]} 25. Qxc2 {[%emt 0:00:00]} Bf6 {[%emt 0:00:01]} 26. Nfg5 {[%emt 0:00:00]} Bxg5 {[%emt 0:07:14]} 27. Nxg5 {[%emt 0:00:00]} Nf6 {[%emt 0:00:38]} 28. Rxe6 {[%emt 0:00:00]} h6 {[%emt 0:05:04]} 29. Re7 {[%emt 0:00:00]} d3 {[%emt 0:03:18]} 30. Rxd7 {[%emt 0:00:00]} dxc2 {[%emt 0:00:10]} 31. Rd8+ {[%emt 0:00:00]} 1-0

[Event "10th Dolomiti Open 2019"]
[Site "Forni di Sopra"]
[Date "2019.06.15"]
[Round "1.10"]
[White "Borges, Guilherme Deola"]
[Black "Valsecchi, Alessio"]
[Result "0-1"]
[ECO "A40"]
[WhiteElo "2171"]
[BlackElo "2504"]
[Annotator "ChessBase"]
[PlyCount "89"]
[EventDate "2019.06.15"]
[EventType "swiss"]
[EventCountry "ITA"]
[SourceTitle "playchess.com"]
[Source "ChessBase"]
[SourceQuality "1"]
[TimeControl "40/5400+30:1800+30"]

1. d4 {[%emt 0:00:00]} e6 {[%emt 0:00:01]} 2. c4 {[%emt 0:00:00]} b6 {[%emt 0:00:09]} 3. Nc3 {[%emt 0:00:41]} Bb4 {[%emt 0:00:29]} 4. Nf3 {[%emt 0:01:53]} Bb7 {[%emt 0:00:17]} 5. Bg5 {[%emt 0:02:08]} f6 {[%emt 0:02:38]} 6. Bh4 {[%emt 0:01:08]} Ne7 {[%emt 0:03:28]} 7. e3 {[%emt 0:03:12]} Nf5 {[%emt 0:16:29]} 8. Bg3 {[%emt 0:06:16]} Nc6 {[%emt 0:02:12]} 9. Bd3 {[%emt 0:07:53]} Qe7 {[%emt 0:01:02]} 10. Qc2 {[%emt 0:04:24]} Nxg3 {[%emt 0:05:16]} 11. hxg3 {[%emt 0:00:23]} O-O-O {[%emt 0:00:09]} 12. O-O-O {[%emt 0:03:02]} Bxc3 {[%emt 0:05:01]} 13. Qxc3 {[%emt 0:00:17]} g6 {[%emt 0:02:31]} 14. Kb1 {[%emt 0:11:06]} Nb4 {[%emt 0:05:30]} 15. Ne1 {[%emt 0:07:43]} Nxd3 {[%emt 0:03:46]} 16. Qxd3 {[%emt 0:00:02]} d5 {[%emt 0:01:24]} 17. c5 {[%emt 0:01:04]} bxc5 {[%emt 0:06:42]} 18. Qa3 {[%emt 0:00:32]} Qd6 {[%emt 0:02:32]} 19. dxc5 {[%emt 0:03:06]} Qa6 {[%emt 0:02:35]} 20. Qc3 {[%emt 0:01:19]} e5 {[%emt 0:01:19]} 21. Rh4 {[%emt 0:01:26]} d4 {[%emt 0:04:23]} 22. exd4 {[%emt 0:00:44]} g5 {[%emt 0:00:07]} 23. Rh1 {[%emt 0:02:54]} Be4+ {[%emt 0:01:58]} 24. Ka1 {[%emt 0:03:14]} Rxd4 {[%emt 0:02:35]} 25. Rxd4 {[%emt 0:10:17]} exd4 {[%emt 0:00:13]} 26. Qd2 {[%emt 0:00:25]} d3 {[%emt 0:05:30]} 27. Nf3 {[%emt 0:03:39]} Bd5 {[%emt 0:04:43]} 28. b3 {[%emt 0:02:09]} Bxf3 {[%emt 0:00:31]} 29. gxf3 {[%emt 0:00:13]} Re8 {[%emt 0:00:27]} 30. Re1 {[%emt 0:17:21]} Rxe1+ {[%emt 0:05:46]} 31. Qxe1 {[%emt 0:00:08]} Qc6 {[%emt 0:00:29]} 32. Qe3 {[%emt 0:01:40]} Qd7 {[%emt 0:02:18]} 33. Qd2 {[%emt 0:01:12]} h5 {[%emt 0:00:38]} 34. Kb1 {[%emt 0:00:31]} c6 {[%emt 0:00:35]} 35. Kc1 {[%emt 0:01:45]} Qd4 {[%emt 0:01:11]} 36. Qa5 {[%emt 0:00:21]} Kb7 {[%emt 0:00:14]} 37. Kd2 {[%emt 0:01:44]} h4 {[%emt 0:00:44]} 38. b4 {[%emt 0:00:40]} h3 {[%emt 0:00:14]} 39. a4 {[%emt 0:01:25]} Qxf2+ {[%emt 0:01:13]} 40. Kxd3 {[%emt 0:00:15]} Qxf3+ {[%emt 0:00:30]} 41. Kd4 {[%emt 0:30:59]} Qg4+ {[%emt 0:30:22]} 42. Kc3 {[%emt 0:00:00]} Qxg3+ {[%emt 0:00:00]} 43. Kc4 {[%emt 0:00:00]} Qf4+ {[%emt 0:00:00]} 44. Kc3 {[%emt 0:00:00]} Qc7 {[%emt 0:00:00]} 45. Kd4 {[%emt 0:03:19]} 0-1

[Event "10th Dolomiti Open 2019"]
[Site "Forni di Sopra"]
[Date "2019.06.16"]
[Round "2.4"]
[White "Deac, Bogdan-Daniel"]
[Black "Guerrero Sierra, Juan Carlos"]
[Result "1-0"]
[ECO "D46"]
[WhiteElo "2623"]
[BlackElo "2290"]
[Annotator "RC"]
[PlyCount "55"]
[EventDate "2019.06.15"]
[EventType "swiss"]
[EventCountry "ITA"]
[SourceTitle "playchess.com"]
[Source "ChessBase"]
[SourceQuality "1"]
[TimeControl "40/5400+30:1800+30"]

1. Nf3 {[%emt 0:00:00]} Nf6 {[%emt 0:05:03]} 2. c4 {[%emt 0:00:00]} c6 {[%emt 0:00:21]} 3. d4 {[%emt 0:01:15]} d5 {[%emt 0:00:04]} 4. Nc3 {[%emt 0:00:10]} e6 {[%emt 0:00:33]} 5. e3 {[%emt 0:00:12]} Nbd7 {[%emt 0:00:35]} 6. Qc2 {[%emt 0:00:03]} Bd6 {[%emt 0:01:17]} 7. Bd3 {[%emt 0:00:06]} O-O {[%emt 0:00:47]} 8. O-O {[%emt 0:00:04]} Qe7 {[%emt 0:06:20]} 9. e4 {[%emt 0:15:39]} dxe4 {[%emt 0:03:08]} 10. Nxe4 {[%emt 0:03:42]} Nxe4 {[%emt 0:01:15]} 11. Bxe4 {[%emt 0:00:02]} h6 {[%emt 0:00:14]} 12. c5 {[%emt 0:31:25]} Bc7 {[%emt 0:01:52]} 13. Bd2 {[%emt 0:00:36]} Rd8 {[%emt 0:22:48]} 14. b4 {[%emt 0:20:03]} Nf6 {[%emt 0:04:07]} 15. Bd3 {[%emt 0:00:22]} Bd7 {[%emt 0:00:52]} 16. Rfe1 {[%emt 0:07:18]} Be8 {[%emt 0:05:07]} 17. a4 {[%emt 0:00:08]} b6 {[%emt 0:01:05]} 18. Rab1 {[%emt 0:03:29]} g5 {[%emt 0:06:40]} 19. h3 {[%emt 0:05:31]} Kg7 {[%emt 0:00:20]} 20. Rbc1 {[%emt 0:01:42]} Rab8 {[%emt 0:02:50]} 21. Bc4 {[%emt 0:00:40]} bxc5 {[%emt 0:02:05]} 22. dxc5 {[%emt 0:04:44]} Rxd2 {[%emt 0:00:36]} 23. Qxd2 {[%emt 0:01:00]} Bf4 {[%emt 0:00:06]} 24. Qc3 {[%emt 0:00:11]} Bxc1 {[%emt 0:00:07]} 25. Rxc1 {[%emt 0:00:05]} Kg8 {[%emt 0:02:31]} 26. Ne5 {[%emt 0:01:17]} a5 {[%emt 0:00:53]} 27. bxa5 {[%emt 0:01:30]} Qxc5 {[%emt 0:00:39]} 28. Nxf7 {[%emt 0:00:12]} 1-0

[Event "10th Dolomiti Open 2019"]
[Site "Forni di Sopra"]
[Date "2019.06.16"]
[Round "2.6"]
[White "Cruz, Cristhian"]
[Black "Vignesh, B."]
[Result "1-0"]
[ECO "E11"]
[WhiteElo "2561"]
[BlackElo "2283"]
[Annotator "ChessBase"]
[PlyCount "41"]
[EventDate "2019.06.15"]
[EventType "swiss"]
[EventCountry "ITA"]
[SourceTitle "playchess.com"]
[Source "ChessBase"]
[SourceQuality "1"]
[TimeControl "40/5400+30:1800+30"]

1. d4 {[%emt 0:00:00]} Nf6 {[%emt 0:00:00]} 2. Nf3 {[%emt 0:00:00]} e6 {[%emt 0:00:03]} 3. c4 {[%emt 0:00:27]} Bb4+ {[%emt 0:00:07]} 4. Bd2 {[%emt 0:00:24]} Qe7 {[%emt 0:00:10]} 5. g3 {[%emt 0:00:17]} Nc6 {[%emt 0:00:07]} 6. e3 {[%emt 0:00:37]} b6 {[%emt 0:03:06]} 7. Bg2 {[%emt 0:00:46]} Bb7 {[%emt 0:00:13]} 8. O-O {[%emt 0:00:27]} Bxd2 {[%emt 0:00:09]} 9. Nfxd2 {[%emt 0:03:09]} O-O {[%emt 0:06:32]} 10. Nc3 {[%emt 0:00:42]} d6 {[%emt 0:02:20]} 11. a3 {[%emt 0:03:50]} Nd8 {[%emt 0:09:53]} 12. d5 {[%emt 0:06:35]} c6 {[%emt 0:05:17]} 13. e4 {[%emt 0:04:19]} Re8 {[%emt 0:05:41]} 14. Re1 {[%emt 0:03:12]} Nd7 {[%emt 0:04:05]} 15. Nf1 {[%emt 0:07:20]} Rc8 {[%emt 0:09:56]} 16. Ne3 {[%emt 0:02:08]} a6 {[%emt 0:06:24]} 17. Qd2 {[%emt 0:04:25]} b5 {[%emt 0:02:38]} 18. Rad1 {[%emt 0:08:25]} bxc4 {[%emt 0:01:58]} 19. dxe6 {[%emt 0:00:15]} Ne5 {[%emt 0:04:34]} 20. Nf5 {[%emt 0:01:38]} Qxe6 {[%emt 0:00:15]} 21. Qg5 {[%emt 0:02:05]} 1-0

[Event "10th Dolomiti Open 2019"]
[Site "Forni di Sopra"]
[Date "2019.06.16"]
[Round "2.7"]
[White "Bifulco, Michel"]
[Black "Santos Ruiz, Miguel"]
[Result "0-1"]
[ECO "B23"]
[WhiteElo "2271"]
[BlackElo "2557"]
[Annotator "ChessBase"]
[PlyCount "62"]
[EventDate "2019.06.15"]
[EventType "swiss"]
[EventCountry "ITA"]
[SourceTitle "playchess.com"]
[Source "ChessBase"]
[SourceQuality "1"]
[TimeControl "40/5400+30:1800+30"]

1. e4 {[%emt 0:00:00]} c5 {[%emt 0:00:00]} 2. Nc3 {[%emt 0:00:00]} Nc6 {[%emt 0:00:13]} 3. Bb5 {[%emt 0:00:00]} Nd4 {[%emt 0:00:26]} 4. Bc4 {[%emt 0:00:00]} a6 {[%emt 0:01:03]} 5. a3 {[%emt 0:02:52]} e6 {[%emt 0:04:04]} 6. Nge2 {[%emt 0:00:31]} Nf6 {[%emt 0:06:40]} 7. O-O {[%emt 0:03:29]} Nxe4 {[%emt 0:13:09]} 8. Nxe4 {[%emt 0:02:41]} d5 {[%emt 0:00:10]} 9. c3 {[%emt 0:10:50]} Nxe2+ {[%emt 0:07:52]} 10. Bxe2 {[%emt 0:00:50]} dxe4 {[%emt 0:00:03]} 11. Qa4+ {[%emt 0:00:09]} Bd7 {[%emt 0:00:06]} 12. Qxe4 {[%emt 0:00:04]} Bc6 {[%emt 0:00:06]} 13. Qe3 {[%emt 0:00:31]} Be7 {[%emt 0:05:29]} 14. Bf3 {[%emt 0:00:36]} Rc8 {[%emt 0:05:44]} 15. d3 {[%emt 0:08:28]} O-O {[%emt 0:04:14]} 16. Bxc6 {[%emt 0:04:08]} Rxc6 {[%emt 0:00:06]} 17. Rd1 {[%emt 0:00:13]} Bf6 {[%emt 0:08:21]} 18. Qf3 {[%emt 0:04:11]} Qb6 {[%emt 0:01:25]} 19. Qe2 {[%emt 0:01:16]} Qb3 {[%emt 0:05:33]} 20. Be3 {[%emt 0:01:22]} Rd8 {[%emt 0:00:34]} 21. Rd2 {[%emt 0:01:56]} b5 {[%emt 0:03:56]} 22. d4 {[%emt 0:11:10]} cxd4 {[%emt 0:01:11]} 23. Rad1 {[%emt 0:00:29]} Rcd6 {[%emt 0:02:17]} 24. Bxd4 {[%emt 0:01:28]} e5 {[%emt 0:01:04]} 25. Be3 {[%emt 0:08:54]} Qxb2 {[%emt 0:00:06]} 26. Rxb2 {[%emt 0:05:10]} Rxd1+ {[%emt 0:00:06]} 27. Qf1 {[%emt 0:00:03]} Rxf1+ {[%emt 0:07:30]} 28. Kxf1 {[%emt 0:00:12]} Rc8 {[%emt 0:00:02]} 29. Rb3 {[%emt 0:01:28]} Rc4 {[%emt 0:00:18]} 30. Ke2 {[%emt 0:00:19]} Be7 {[%emt 0:00:08]} 31. Kd3 {[%emt 0:01:05]} f5 {[%emt 0:23:34] Kd4} 0-1

[Event "10th Dolomiti Open 2019"]
[Site "Forni di Sopra"]
[Date "2019.06.16"]
[Round "2.8"]
[White "Kumar, Nikhil"]
[Black "Castellanos Rodriguez, Renier"]
[Result "1/2-1/2"]
[ECO "E16"]
[WhiteElo "2257"]
[BlackElo "2511"]
[Annotator "ChessBase"]
[PlyCount "80"]
[EventDate "2019.06.15"]
[EventType "swiss"]
[EventCountry "ITA"]
[SourceTitle "playchess.com"]
[Source "ChessBase"]
[SourceQuality "1"]
[TimeControl "40/5400+30:1800+30"]

1. d4 {[%emt 0:00:00]} Nf6 {[%emt 0:00:00]} 2. c4 {[%emt 0:00:00]} e6 {[%emt 0:00:11]} 3. g3 {[%emt 0:00:07]} d5 {[%emt 0:02:32]} 4. Nf3 {[%emt 0:00:08]} c6 {[%emt 0:02:49]} 5. Bg2 {[%emt 0:00:14]} b6 {[%emt 0:01:14]} 6. O-O {[%emt 0:01:22]} Bb7 {[%emt 0:00:15]} 7. Qc2 {[%emt 0:01:00]} Be7 {[%emt 0:00:16]} 8. Rd1 {[%emt 0:00:50]} O-O {[%emt 0:00:08]} 9. Nbd2 {[%emt 0:00:49]} Na6 {[%emt 0:01:19]} 10. a3 {[%emt 0:01:32]} c5 {[%emt 0:08:36]} 11. dxc5 {[%emt 0:02:48]} Nxc5 {[%emt 0:04:35]} 12. b4 {[%emt 0:03:53]} Ncd7 {[%emt 0:00:23]} 13. Bb2 {[%emt 0:01:40]} Rc8 {[%emt 0:01:38]} 14. Qb3 {[%emt 0:12:36]} Qc7 {[%emt 0:11:34]} 15. Rac1 {[%emt 0:02:40]} Qb8 {[%emt 0:00:13]} 16. cxd5 {[%emt 0:05:01]} Bxd5 {[%emt 0:00:45]} 17. Qd3 {[%emt 0:00:11]} Qa8 {[%emt 0:08:29]} 18. Ne1 {[%emt 0:04:45]} a5 {[%emt 0:04:04]} 19. Bxd5 {[%emt 0:04:21]} Nxd5 {[%emt 0:01:24]} 20. Qb5 {[%emt 0:02:30]} Bf6 {[%emt 0:02:12]} 21. bxa5 {[%emt 0:05:01]} Bxb2 {[%emt 0:06:03]} 22. Qxb2 {[%emt 0:00:11]} Qxa5 {[%emt 0:00:32]} 23. Nb3 {[%emt 0:05:46]} Qb5 {[%emt 0:04:23]} 24. Nd3 {[%emt 0:04:40]} Ra8 {[%emt 0:07:16]} 25. Nb4 {[%emt 0:08:45]} N5f6 {[%emt 0:08:08]} 26. Ra1 {[%emt 0:06:35]} Rfc8 {[%emt 0:02:14]} 27. Nd4 {[%emt 0:02:57]} Qa4 {[%emt 0:01:17]} 28. Qb3 {[%emt 0:01:03]} Qxb3 {[%emt 0:05:32]} 29. Nxb3 {[%emt 0:00:02]} Ne5 {[%emt 0:02:08]} 30. Rdc1 {[%emt 0:08:24]} Rxc1+ {[%emt 0:02:17]} 31. Rxc1 {[%emt 0:00:20]} g5 {[%emt 0:00:19]} 32. Ra1 {[%emt 0:03:11]} Ra4 {[%emt 0:01:06]} 33. Nd2 {[%emt 0:00:40]} Ra7 {[%emt 0:02:33]} 34. a4 {[%emt 0:02:36]} Rd7 {[%emt 0:02:11]} 35. Nb3 {[%emt 0:01:12]} h6 {[%emt 0:01:28]} 36. a5 {[%emt 0:01:17]} bxa5 {[%emt 0:00:05]} 37. Rxa5 {[%emt 0:00:38]} Rb7 {[%emt 0:00:56]} 38. Rxe5 {[%emt 0:01:04]} Rxb4 {[%emt 0:00:04]} 39. Re3 {[%emt 0:00:50]} Rc4 {[%emt 0:01:27]} 40. Rd3 {[%emt 0:01:12]} Nd5 {[%emt 0:02:04]} 1/2-1/2